bitfinex/quotes_ETHUSD_20241231
["timestamp","ask_amount","ask_price","bid_price","bid_amount"]
[1735658209328,2.91953,3425.2,3424.1,3.68915]
[1735658209666,2.91966,3425.1,3424.2,0.7044879]
[1735658210229,2.91966,3425.1,3424.3,0.7687]
[1735658210537,0.798,3425.7,3424.3,0.7687]
[1735658210949,3.798,3425.7,3424.3,0.7687]
[1735658211131,3.0,3425.5,3424.3,0.7687]
[1735658211331,2.91988,3424.8,3424.3,1.25159169]
[1735658211530,0.963634,3425.4,3424.3,1.25159169]
[1735658211744,2.91992,3424.8,3424.3,0.7687]
[1735658212139,0.963634,3425.4,3424.3,0.7687]
[1735658212368,2.91998,3424.7,3424.3,0.7687]
[1735658212578,3.0,3425.5,3424.3,0.7687]
[1735658212774,3.0,3425.3,3424.3,0.7687]
[1735658213064,3.0,3425.8,3424.3,1.1811429]
[1735658213241,2.91976,3425.0,3424.3,1.1811429]
[1735658213429,3.0,3424.9,3424.3,1.1811429]
[1735658213631,2.91934,3425.5,3424.3,1.1811429]
[1735658213971,2.91943,3425.4,3424.4,4.136029]
[1735658214170,2.91943,3425.4,3424.6,0.7803]
[1735658214331,2.9191,3425.8,3424.6,0.7803]
[1735658214532,2.91953,3425.2,3424.6,0.7803]
[1735658215059,2.91947,3425.3,3424.6,0.7803]
[1735658215255,2.91959,3425.2,3424.6,0.7803]
[1735658215446,2.91982,3424.9,3424.6,1.26859082]
[1735658215701,2.92012,3424.6,3423.7,0.7803]
[1735658215870,3.0,3424.5,3423.7,0.7803]
[1735658216155,2.91977,3425.0,3423.7,0.7803]
[1735658216156,3.7804,3424.9,3423.7,0.7803]
[1735658216468,2.92092,3423.6,3422.9,0.7803]
[1735658216673,2.92092,3423.6,3423.0,0.4136029]
[1735658216830,3.0,3424.1,3422.9,0.7803]
[1735658217176,2.92082,3423.7,3422.9,0.7803]
[1735658217386,2.92067,3423.9,3422.9,0.7803]
[1735658217687,3.0,3424.1,3423.1,0.7803]
[1735658217850,3.0,3424.4,3423.2,0.7803]
[1735658218189,2.92068,3423.9,3423.2,0.7803]
[1735658219141,3.0,3424.2,3423.2,0.7803]
[1735658219508,2.92109,3423.4,3423.2,0.7803]
[1735658219789,2.92108,3423.4,3423.2,0.7803]
[1735658220302,2.92038,3424.3,3422.6,0.7803]
[1735658220303,3.0,3424.2,3422.6,0.7803]
[1735658220439,0.7804,3423.6,3422.6,0.7803]
[1735658220784,3.7804,3423.6,3422.6,0.7803]
[1735658221108,2.92133,3423.1,3422.6,0.7803]
[1735658223078,2.92118,3423.3,3422.6,0.7803]
[1735658223237,3.57842215,3424.0,3422.6,0.7803]
[1735658223610,1.61441521,3424.6,3422.7,3.70195]
[1735658223611,0.7804,3424.3,3422.7,3.70195]
[1735658224081,3.0,3423.7,3422.7,3.70195]
[1735658225384,2.92065,3423.9,3423.0,0.7803]
[1735658225604,3.0,3423.7,3423.0,0.7803]
[1735658225891,0.7804,3423.5,3422.0,0.7803]
[1735658226078,2.92152,3422.9,3422.1,0.48724]
[1735658226409,2.9216,3422.8,3422.1,0.48724]
[1735658226701,3.0,3423.2,3422.0,0.7803]
[1735658226916,2.92184,3422.5,3422.0,0.7803]
[1735658227682,3.0,3422.9,3422.0,0.7803]
[1735658228176,3.0,3423.3,3422.0,0.7803]
[1735658228507,6.355729,3423.3,3422.0,0.7803]
[1735658228807,1.06388825,3423.3,3422.0,0.7803]
[1735658228976,2.92147,3423.0,3422.0,0.7803]
[1735658229179,3.0,3422.8,3422.0,0.7803]
[1735658229503,3.0,3423.1,3422.0,0.7803]
[1735658229712,2.92168,3422.7,3422.0,0.7803]
[1735658229914,3.0,3422.9,3422.0,0.7803]
[1735658230063,2.92152,3422.9,3422.1,0.370266]
[1735658230678,0.7804,3423.5,3422.3,0.7549]
[1735658230878,2.92077,3423.8,3422.4,3.67681]
[1735658231098,2.9205,3424.1,3422.3,3.355729]
[1735658231372,0.8259,3424.2,3422.6,0.7549]
[1735658231373,2.92099,3423.5,3422.6,0.7549]
[1735658231693,2.92056,3424.0,3422.6,0.7549]
[1735658231899,2.92056,3424.0,3422.7,0.7549]
[1735658232578,0.59896763,3424.1,3422.7,0.7549]
[1735658232776,0.59896763,3424.1,3422.8,0.7549]
[1735658232972,3.0,3423.8,3422.8,0.7549]
[1735658233199,2.92149,3422.9,3422.8,0.7549]
[1735658233399,3.0,3423.6,3422.2,0.7549]
[1735658233612,2.92183,3422.6,3422.2,0.7549]
[1735658233915,2.92192,3422.4,3422.2,0.7549]
[1735658234287,2.92194,3422.4,3422.2,0.7549]
[1735658234495,2.92149,3422.9,3422.2,0.7549]
[1735658234712,2.9217,3422.7,3422.2,0.7549]
[1735658235072,3.0,3422.6,3422.2,0.7549]
[1735658235468,3.8259,3423.0,3422.2,0.7549]
[1735658235713,2.92244,3421.8,3421.3,0.7549]
[1735658236087,0.8259,3422.4,3421.3,0.7549]
[1735658236289,5.92278,3421.4,3421.3,0.7549]
[1735658236483,3.0,3421.4,3420.7,0.7549]
[1735658236896,5.92283,3421.4,3420.7,0.7549]
[1735658237098,2.92248,3421.8,3420.8,0.19704372]
[1735658237308,2.92296,3421.2,3420.8,0.19704372]
[1735658237578,2.92307,3421.1,3420.8,0.19704372]
[1735658237777,2.92307,3421.1,3420.7,0.7549]
[1735658237977,0.8259,3421.6,3420.7,0.7549]
[1735658238240,0.8259,3421.6,3419.9,0.7549]
[1735658238578,2.92278,3421.4,3419.9,3.67896]
[1735658238933,2.92269,3421.5,3420.0,0.48944972]
[1735658239092,2.92324,3420.9,3420.0,0.48944972]
[1735658239300,3.0,3421.2,3420.0,0.48944972]
[1735658239639,3.8259,3421.6,3419.9,0.7549]
[1735658239840,2.92347,3420.6,3419.9,0.7549]
[1735658240187,2.92371,3420.4,3419.9,0.7549]
[1735658240391,2.92373,3420.3,3419.9,0.7549]
[1735658241482,2.92376,3420.3,3419.9,0.7549]
[1735658241802,2.92367,3420.4,3419.9,0.7549]
[1735658242212,2.92372,3420.3,3419.9,0.7549]
[1735658242723,2.92356,3420.5,3419.9,0.7549]
[1735658243085,4.35969841,3421.2,3419.9,0.7549]
[1735658243299,0.7659,3421.5,3419.9,0.7549]
[1735658243505,0.7659,3421.5,3420.1,0.7828]
[1735658243716,0.7659,3421.5,3420.2,0.370677]
[1735658244331,2.92303,3421.2,3420.2,0.370677]
[1735658245036,2.92305,3421.1,3420.1,0.7828]
[1735658245247,2.92328,3420.9,3420.1,0.7828]
[1735658245396,2.92302,3421.2,3420.1,0.7828]
[1735658246025,2.92302,3421.2,3420.1,2.92385]
[1735658246211,3.0,3421.1,3420.2,0.7595]
[1735658246409,2.92304,3421.1,3420.3,0.368335]
[1735658246606,2.92314,3421.0,3420.3,0.368335]
[1735658246809,2.92314,3421.0,3420.2,0.7595]
[1735658247642,3.0,3421.4,3420.2,0.7595]
[1735658247810,2.92339,3420.7,3420.2,0.7595]
[1735658248026,2.92339,3420.7,3418.9,1.170921]
[1735658248027,3.0,3420.7,3419.1,2.92472]
[1735658248221,2.92387,3420.2,3419.2,0.7595]
[1735658248423,0.8078,3420.7,3419.2,0.7595]
[1735658248653,2.92407,3419.9,3419.2,0.7595]
[1735658248845,2.92391,3420.1,3419.2,0.7595]
[1735658249046,2.92365,3420.4,3419.3,0.7595]
[1735658249218,2.92365,3420.4,3419.5,0.7595]
[1735658249536,2.9235,3420.6,3419.5,3.6839]
[1735658249747,3.0,3420.5,3419.5,3.6839]
[1735658250119,0.8078,3421.1,3419.5,0.7595]
[1735658250120,2.92366,3420.4,3419.5,0.7595]
[1735658250314,2.92397,3420.0,3419.5,0.7595]
[1735658250840,2.92337,3420.7,3419.5,0.7595]
[1735658251043,2.92383,3420.2,3419.5,0.7595]
[1735658251242,2.92406,3419.9,3419.5,0.7595]
[1735658251537,2.92418,3419.8,3419.5,0.7595]
[1735658252126,3.0,3420.2,3419.5,0.7595]
[1735658252127,2.92424,3419.7,3419.5,0.7595]
[1735658252444,2.92406,3419.9,3418.5,0.7595]
[1735658252641,2.92453,3419.4,3418.6,1.121161]
[1735658253503,2.92434,3419.6,3418.6,1.121161]
[1735658254743,2.92417,3419.8,3418.8,0.7595]
[1735658254962,2.92417,3419.8,3418.8,3.68449]
[1735658255165,2.92417,3419.8,3418.9,0.7595]
[1735658255463,2.92417,3419.8,3418.8,2.92499]
[1735658255464,2.92364,3420.4,3419.3,2.92454]
[1735658255654,2.92372,3420.3,3419.3,2.92454]
[1735658255849,2.92356,3420.5,3419.4,3.68396]
[1735658256162,2.92356,3420.5,3419.5,0.7595]
[1735658256404,2.92339,3420.7,3419.6,2.92426]
[1735658256532,0.8078,3421.4,3420.1,0.7595]
[1735658256737,2.92323,3420.9,3420.1,0.7595]
[1735658256971,2.92306,3421.1,3420.1,0.7595]
[1735658257486,2.92319,3421.0,3420.1,0.7595]
[1735658257696,2.92319,3421.0,3420.2,0.368346]
[1735658258389,2.92343,3420.7,3420.2,0.368346]
[1735658258526,2.92343,3420.7,3420.1,0.7595]
[1735658258747,3.8078,3421.4,3420.1,0.7595]
[1735658259086,3.0,3421.2,3420.1,0.7595]
[1735658259285,2.92337,3420.8,3420.1,0.7595]
[1735658260749,2.92337,3420.8,3420.1,1.127862]
[1735658261602,2.92337,3420.8,3420.1,0.7595]
[1735658262298,3.8078,3421.4,3420.1,0.7595]
[1735658262521,2.92338,3420.7,3420.1,0.7595]
[1735658263119,3.73587,3420.6,3419.5,0.7668]
[1735658263267,2.92364,3420.4,3419.5,3.69113]
[1735658263467,2.92364,3420.4,3419.6,0.369113]
[1735658263728,2.92349,3420.6,3419.6,0.369113]
[1735658264184,2.92314,3421.0,3419.8,0.7668]
[1735658264390,3.0,3420.9,3419.8,0.7668]
[1735658264587,3.0,3420.9,3420.1,2.92387]
[1735658264808,3.51606008,3421.7,3420.3,0.7623]
[1735658265013,2.9231,3421.1,3420.3,0.7623]
[1735658265339,2.92289,3421.3,3420.3,0.7623]
[1735658265468,3.0,3421.2,3420.3,3.686]
[1735658265671,3.0,3421.4,3420.5,2.9235]
[1735658265910,0.7572,3421.8,3420.7,0.7623]
[1735658266066,2.9228,3421.4,3420.7,0.7623]
[1735658266504,2.92292,3421.3,3420.7,0.7623]
[1735658266729,3.0,3421.2,3420.7,0.7623]
[1735658267606,0.57178196,3421.9,3420.7,0.7623]
[1735658267770,0.7572,3422.1,3420.9,0.7623]
[1735658267974,1.33513709,3422.1,3420.9,0.7623]
[1735658268271,2.92272,3421.5,3420.9,0.7623]
[1735658269126,2.9228,3421.4,3420.9,0.7623]
[1735658269435,2.9225,3421.8,3420.9,0.7623]
[1735658269727,2.92278,3421.4,3420.9,0.7623]
[1735658270104,4.33513709,3422.1,3420.9,0.7623]
[1735658270105,7.69086609,3422.1,3420.9,0.7623]
[1735658270307,2.92297,3421.2,3420.9,0.7623]
[1735658270523,2.92301,3421.2,3420.9,0.7623]
[1735658270824,2.92266,3421.6,3420.1,0.7623]
[1735658270825,2.92329,3420.8,3420.1,0.7623]
[1735658271041,2.92295,3421.2,3420.1,0.7623]
[1735658271168,6.68023,3421.1,3420.1,0.7623]
[1735658271368,0.59613924,3421.0,3420.1,0.7623]
[1735658271569,0.59613924,3421.0,3419.1,2.42114479]
[1735658271570,2.924,3420.0,3419.7,0.7623]
[1735658271868,2.92346,3420.6,3419.7,0.7623]
[1735658272078,3.0,3420.5,3419.7,0.7623]
[1735658272282,2.92384,3420.2,3419.7,0.7623]
[1735658272479,3.0,3420.7,3419.7,0.7623]
[1735658272710,0.7508,3420.4,3419.7,0.7623]
[1735658272917,3.0,3420.2,3419.7,0.7623]
[1735658273085,5.92388,3420.2,3419.7,0.7623]
[1735658274019,3.0,3420.2,3419.7,0.7623]
[1735658274320,2.92407,3419.9,3419.7,0.7623]
[1735658274504,2.92432,3419.6,3419.1,0.8178]
[1735658274703,2.92435,3419.6,3419.1,0.8178]
[1735658274909,2.92418,3419.8,3419.1,0.8178]
[1735658275110,2.92421,3419.8,3419.1,0.8178]
[1735658275923,2.92409,3419.9,3419.1,0.8178]
[1735658276084,2.92409,3419.9,3419.2,0.374269]
[1735658276287,3.0,3420.0,3419.2,0.374269]
[1735658276510,4.32756294,3420.4,3419.1,3.74253]
[1735658276844,2.924,3420.0,3419.1,0.8178]
[1735658276997,1.32756294,3420.4,3419.1,0.8178]
[1735658277191,2.92415,3419.8,3419.1,0.8178]
[1735658277393,1.32756294,3420.4,3419.1,0.8178]
[1735658277616,2.92436,3419.6,3419.1,0.8178]
[1735658277803,0.72572771,3420.3,3419.1,0.8178]
[1735658278236,3.0,3420.0,3419.1,0.8178]
[1735658278435,2.92412,3419.9,3419.1,0.8178]
[1735658278731,3.0,3420.1,3419.1,0.8178]
[1735658278961,3.0,3420.1,3419.2,0.8178]
[1735658279097,3.0,3420.4,3419.2,0.8178]
[1735658279297,2.92431,3419.7,3419.2,0.8178]
[1735658280294,2.92372,3420.3,3419.2,0.8178]
[1735658280500,3.0,3420.1,3419.2,0.8178]
[1735658280935,3.58608638,3420.5,3419.2,1.192064]
[1735658281150,3.0,3420.2,3419.2,0.8178]
[1735658281384,2.92424,3419.7,3419.2,0.8178]
[1735658281763,2.92408,3419.9,3419.2,0.8178]
[1735658282034,2.92372,3420.3,3419.2,0.8178]
[1735658282241,2.9241,3419.9,3419.2,0.8178]
[1735658282440,2.92417,3419.8,3419.2,0.8178]
[1735658282629,2.92424,3419.7,3419.2,0.8178]
[1735658282958,2.92433,3419.6,3419.2,0.8178]
[1735658283446,3.0,3420.2,3419.2,0.8178]
[1735658283764,3.0,3420.0,3419.2,0.8178]
[1735658283909,2.92397,3420.1,3419.2,0.8178]
[1735658284114,1.79672247,3420.6,3419.6,3.355729]
[1735658284311,1.79672247,3420.6,3419.9,2.92405]
[1735658284540,1.79672247,3420.6,3420.2,0.8178]
[1735658284737,1.79672247,3420.8,3420.2,0.8178]
[1735658284948,1.79672247,3420.8,3420.5,0.8178]
[1735658285244,1.79672247,3420.8,3420.7,0.8178]
[1735658285470,1.79672247,3420.8,3420.7,6.18237]
[1735658286104,3.49628032,3422.0,3420.9,2.9232]
[1735658286304,3.49628032,3422.0,3421.0,0.8178]
[1735658286602,3.49628032,3422.0,3421.0,3.7409]
[1735658286804,0.57401032,3422.0,3421.3,2.92286]
[1735658287128,0.57401032,3422.0,3421.2,0.8178]
[1735658287327,2.92218,3422.1,3421.2,0.8178]
[1735658287732,5.92192,3422.4,3421.2,0.8178]
[1735658287952,3.0,3422.4,3421.2,0.8178]
[1735658288266,5.31695996,3423.1,3421.2,0.8178]
[1735658288267,3.0,3421.9,3421.2,0.8178]
[1735658288471,2.92272,3421.5,3421.2,0.8178]
[1735658288626,2.92289,3421.3,3420.8,0.7564]
[1735658289029,0.57873591,3422.1,3420.8,0.7564]
[1735658289229,2.39562996,3422.8,3420.8,3.355729]
[1735658289230,2.92208,3422.3,3420.8,3.355729]
[1735658289430,0.7596,3422.6,3420.8,3.355729]
[1735658289431,2.922,3422.4,3421.0,0.7564]
[1735658289630,2.92234,3422.0,3421.0,0.7564]
[1735658290257,2.92242,3421.9,3421.0,0.7564]
[1735658290775,2.92229,3422.0,3421.0,0.7564]
[1735658290975,2.92236,3421.9,3421.0,0.7564]
[1735658291278,2.92236,3421.9,3421.1,0.40151729]
[1735658291459,3.0,3422.2,3421.1,0.40151729]
[1735658291649,3.0,3422.0,3421.0,0.7564]
[1735658291968,2.92271,3421.5,3421.0,0.7564]
[1735658292897,2.92277,3421.5,3421.0,0.7564]
[1735658293504,3.0,3421.7,3421.0,0.7564]
[1735658293677,3.592243,3421.7,3421.0,0.7564]
[1735658293890,2.9227,3421.5,3421.0,0.7564]
[1735658294371,2.9227,3421.5,3420.2,0.59930668]
[1735658294372,2.9226,3421.6,3420.3,0.7564]
[1735658294574,2.92269,3421.5,3420.3,0.7564]
[1735658294777,3.0,3421.4,3420.3,0.7564]
[1735658295002,3.0,3421.1,3420.3,0.7564]
[1735658295168,2.92348,3420.6,3420.3,0.7564]
[1735658295363,3.0,3420.9,3420.3,0.7564]
[1735658295565,3.0,3420.9,3419.8,0.7564]
[1735658295566,3.7596,3420.9,3419.8,0.7564]
[1735658295887,2.92378,3420.3,3419.8,0.7564]
[1735658296676,3.0,3420.5,3419.8,0.7564]
[1735658297572,2.92351,3420.6,3419.8,0.7564]
[1735658297775,2.92303,3421.1,3419.8,0.7564]
[1735658298004,2.92353,3420.6,3419.8,1.124469]
[1735658298194,2.92355,3420.5,3419.8,1.124469]
[1735658298562,2.9239,3420.1,3419.8,0.7564]
[1735658298882,2.92422,3419.8,3418.9,0.7564]
[1735658299099,2.92427,3419.7,3418.9,0.7564]
[1735658299505,3.0,3419.8,3418.9,0.7564]
[1735658299704,2.92457,3419.4,3418.9,0.7564]
[1735658300067,2.92434,3419.6,3418.9,0.7564]
[1735658301135,3.0,3419.8,3418.9,1.124556]
[1735658301288,2.92452,3419.4,3418.9,0.7564]
[1735658301781,2.92397,3420.0,3418.9,0.7564]
[1735658301978,2.92431,3419.7,3418.9,0.7564]
[1735658302183,2.92447,3419.5,3418.9,0.7564]
[1735658302427,2.92408,3419.9,3418.9,0.7564]
[1735658302596,2.92456,3419.4,3418.9,0.7564]
[1735658302799,2.92483,3419.0,3418.9,0.7564]
[1735658302985,2.92483,3419.0,3418.6,0.7825]
[1735658302986,2.9249,3419.0,3418.6,0.7825]
[1735658303477,0.7592,3419.5,3418.6,0.7825]
[1735658303809,2.92466,3419.2,3418.6,0.7825]
[1735658304106,2.92466,3419.2,3417.7,5.92587]
[1735658304107,2.925,3418.8,3417.9,0.7825]
[1735658305010,3.0,3419.4,3417.9,0.7825]
[1735658305225,0.7592,3419.8,3418.1,0.7825]
[1735658305518,2.9244,3419.5,3418.2,0.7825]
[1735658305692,2.9244,3419.5,3418.4,3.70777]
[1735658305894,2.92412,3419.9,3418.5,0.7825]
[1735658306109,1.35398572,3420.3,3418.7,0.7825]
[1735658306307,1.35398572,3420.3,3419.0,0.7825]
[1735658306517,1.78175229,3420.3,3419.1,0.370734]
[1735658306702,2.92395,3420.1,3419.1,0.370734]
[1735658306928,1.78175229,3420.3,3419.1,0.370734]
[1735658306929,3.0,3419.9,3419.1,0.370734]
[1735658307086,2.9241,3419.9,3419.1,0.370734]
[1735658307287,2.92417,3419.8,3419.0,0.7825]
[1735658308008,3.0,3420.1,3419.0,0.7825]
[1735658308208,2.92421,3419.8,3419.0,0.7825]
[1735658309437,3.0,3420.1,3419.0,0.7825]
[1735658309728,2.9245,3419.4,3419.0,0.7825]
[1735658309924,2.92467,3419.2,3419.0,0.7825]
[1735658310089,2.92467,3419.2,3418.4,0.7825]
[1735658310488,2.9245,3419.4,3418.4,0.7825]
[1735658310840,0.7592,3419.6,3418.4,0.7825]
[1735658311130,0.7592,3419.6,3418.5,0.44142969]
[1735658311313,3.7592,3420.0,3418.6,0.7825]
[1735658311633,3.0,3419.6,3418.8,0.7825]
[1735658312105,5.92431,3419.6,3418.8,0.7825]
[1735658312663,5.92431,3419.6,3418.9,0.370761]
[1735658315035,0.7592,3420.0,3418.4,0.7825]
[1735658315220,2.92458,3419.3,3418.4,0.7825]
[1735658315604,2.92451,3419.4,3418.4,3.70782]
[1735658315930,0.7592,3420.0,3418.0,0.59064998]
[1735658315931,0.7592,3420.0,3418.5,3.355729]
[1735658316235,2.92432,3419.6,3418.7,0.7825]
[1735658316590,2.92432,3419.6,3418.7,3.70757]
[1735658316909,3.0,3420.4,3418.8,0.7825]
[1735658316910,2.92417,3419.8,3418.8,0.7825]
[1735658317109,2.92425,3419.7,3418.8,0.7825]
[1735658317318,5.92393,3420.1,3418.8,0.7825]
[1735658317319,3.0,3419.9,3418.8,0.7825]
[1735658317522,3.0,3419.9,3418.9,0.40431429]
[1735658317735,2.92428,3419.7,3418.9,0.40431429]
[1735658317927,2.92412,3419.9,3419.0,0.8041]
[1735658318126,0.59478572,3420.3,3419.0,0.8041]
[1735658318437,0.7832,3420.7,3419.3,0.8041]
[1735658318740,2.92392,3420.1,3419.3,0.8041]
[1735658318897,2.92373,3420.3,3419.3,0.8041]
[1735658319125,2.92373,3420.3,3419.4,0.372875]
[1735658319325,2.92382,3420.2,3419.4,0.372875]
[1735658319559,2.9239,3420.1,3419.4,0.372875]
[1735658319767,2.92354,3420.5,3419.4,0.372875]
[1735658320080,2.92354,3420.5,3419.3,0.8041]
[1735658320286,2.9243,3419.7,3419.3,0.8041]
[1735658320629,3.0,3420.3,3419.3,0.8041]
[1735658320857,3.0,3420.5,3419.3,0.8041]
[1735658321023,2.92391,3420.1,3419.3,0.8041]
[1735658321372,3.0,3420.5,3419.5,0.8041]
[1735658321578,2.92372,3420.3,3419.5,0.8041]
[1735658321937,4.37833163,3420.7,3419.5,0.8041]
[1735658322141,2.92407,3419.9,3419.5,0.8041]
[1735658322571,2.92388,3420.2,3419.5,0.8041]
[1735658323006,0.7832,3421.1,3419.8,0.8041]
[1735658323298,0.7832,3421.1,3419.7,6.279909]
[1735658323299,2.92315,3421.0,3420.0,0.8041]
[1735658323472,0.7832,3421.5,3420.1,0.8041]
[1735658323634,2.92295,3421.2,3420.1,0.8041]
[1735658323835,2.92318,3421.0,3420.2,0.44365409]
[1735658324225,2.92323,3420.9,3420.2,0.44365409]
[1735658324430,2.9233,3420.8,3420.2,0.44365409]
[1735658324690,3.49493451,3421.6,3420.1,0.8041]
[1735658324691,0.7832,3421.1,3420.1,0.8041]
[1735658324831,2.92347,3420.6,3420.1,0.8041]
[1735658325037,2.92356,3420.5,3420.1,0.8041]
[1735658325342,0.7832,3420.2,3419.4,0.8041]
[1735658325533,2.9241,3419.9,3419.4,0.8041]
[1735658325931,3.70706,3420.2,3418.9,3.72898]
[1735658326138,2.92425,3419.7,3419.0,0.73049384]
[1735658326392,0.7832,3420.2,3419.0,0.73049384]
[1735658326663,2.92453,3419.4,3418.9,0.8041]
[1735658326830,2.92466,3419.3,3418.9,0.8041]
[1735658327043,2.92466,3419.2,3418.9,0.8041]
[1735658327900,2.92475,3419.1,3418.9,0.8041]
[1735658328090,3.70767,3419.5,3418.9,0.8041]
[1735658328296,2.92477,3419.1,3418.9,0.8041]
[1735658329340,2.9246,3419.3,3418.9,0.8041]
[1735658329771,3.70728,3419.9,3418.9,0.8041]
[1735658330141,2.92408,3419.9,3418.9,0.8041]
[1735658330347,2.92414,3419.8,3418.9,0.8041]
[1735658330582,2.92429,3419.7,3418.9,0.8041]
[1735658331273,2.92409,3419.9,3418.9,3.72898]
[1735658331474,5.9238,3420.2,3418.9,3.72898]
[1735658331675,2.92415,3419.8,3419.0,0.372898]
[1735658332153,2.92415,3419.8,3419.1,0.8041]
[1735658333983,2.92399,3420.0,3419.1,0.8041]
[1735658334903,2.92382,3420.2,3419.2,2.92464]
[1735658335471,2.92382,3420.2,3419.3,0.8132]
[1735658335677,2.92382,3420.2,3419.4,0.373784]
[1735658335857,3.0,3420.5,3419.4,0.373784]
[1735658336065,2.92392,3420.1,3419.4,0.373784]
[1735658336802,2.92392,3420.1,3419.5,0.8132]
[1735658338508,0.59129129,3420.6,3419.5,0.8132]
[1735658338675,2.92326,3420.9,3419.9,2.92402]
[1735658338881,0.7793,3421.1,3419.9,2.92402]
[1735658338882,2.9233,3420.8,3419.9,0.8132]
[1735658339215,2.92298,3421.2,3419.9,0.8132]
[1735658339512,0.7793,3421.4,3420.2,0.8132]
[1735658339709,0.7793,3421.4,3420.3,0.373702]
[1735658340380,3.7793,3421.4,3420.3,0.373702]
[1735658340581,2.92298,3421.2,3420.3,0.373702]
[1735658340901,2.92298,3421.2,3420.4,0.8132]
[1735658341282,2.92271,3421.5,3420.5,2.92354]
[1735658341604,2.92271,3421.5,3420.7,0.8132]
[1735658341824,2.92282,3421.4,3420.7,0.8132]
[1735658342023,2.92286,3421.3,3420.7,0.8132]
[1735658342184,3.0,3421.5,3420.7,0.8132]
[1735658342389,2.92294,3421.3,3420.7,0.8132]
[1735658342790,2.9231,3421.1,3420.7,0.8132]
[1735658346232,0.29231,3421.1,3419.9,0.7639]
[1735658346433,0.8159,3421.2,3419.9,0.7639]
[1735658346640,2.92389,3420.1,3419.9,0.7639]
[1735658346811,2.92368,3420.4,3419.9,0.7639]
[1735658347001,2.92336,3420.8,3419.9,0.7639]
[1735658347325,2.92372,3420.3,3419.9,0.7639]
[1735658348515,2.92377,3420.3,3419.9,0.7639]
[1735658348901,2.92375,3420.3,3419.9,0.7639]
[1735658349775,0.5718288,3420.8,3419.9,0.7639]
[1735658350075,2.92318,3421.0,3420.0,0.7639]
[1735658350281,2.92318,3421.0,3420.1,0.7639]
[1735658350462,2.92318,3421.0,3420.2,0.368784]
[1735658351474,2.9234,3420.7,3420.2,0.368784]
[1735658351648,5.84556,3421.4,3420.1,0.7639]
[1735658351848,3.0,3421.3,3420.1,0.7639]
[1735658352052,3.0,3420.4,3420.1,0.7639]
[1735658353183,2.92365,3420.4,3420.1,0.7639]
[1735658353666,3.8159,3421.3,3420.1,0.7639]
[1735658353858,3.0,3421.0,3420.1,0.7639]
[1735658354069,2.92372,3420.3,3420.1,0.7639]
[1735658354377,0.8159,3420.7,3419.4,0.7639]
[1735658354694,2.92402,3420.0,3419.4,0.7639]
[1735658355196,2.92408,3419.9,3419.4,0.7639]
[1735658355594,3.0,3420.4,3419.4,0.7639]
[1735658355892,0.8159,3419.9,3418.8,0.7639]
[1735658356052,2.92423,3419.7,3418.8,0.7639]
[1735658356397,2.92451,3419.4,3418.8,0.7639]
[1735658357578,0.8159,3419.9,3418.8,0.7639]
[1735658357792,2.92453,3419.4,3418.8,0.7639]
[1735658358903,2.92457,3419.3,3418.8,0.7639]
[1735658359889,3.52181875,3419.8,3418.8,0.7639]
[1735658360094,3.95559063,3419.8,3418.8,0.7639]
[1735658360264,2.92448,3419.5,3418.8,0.7639]
[1735658360475,2.92426,3419.7,3418.8,3.68889]
[1735658360681,0.59763875,3419.8,3419.0,0.7639]
[1735658360901,2.92415,3419.8,3419.0,0.7639]
[1735658361105,2.92415,3419.8,3419.1,0.368888]
[1735658362213,2.92423,3419.7,3419.1,0.368888]
[1735658363216,2.92409,3419.9,3419.1,0.368888]
[1735658363590,2.92409,3419.9,3419.2,0.7693]
[1735658363985,2.92386,3420.2,3419.2,0.7693]
[1735658364183,2.92386,3420.2,3419.3,0.4062908]
[1735658364399,2.92386,3420.2,3419.4,0.7693]
[1735658366439,3.0,3420.3,3419.4,0.7693]
[1735658366741,2.92412,3419.9,3419.4,0.7693]
[1735658367140,2.92392,3420.1,3419.4,0.7693]
[1735658368545,2.92376,3420.3,3419.6,0.8311]
[1735658369000,2.92357,3420.5,3419.6,0.8311]
[1735658369638,0.8279,3420.9,3419.8,0.8311]
[1735658369847,0.8279,3420.9,3419.7,2.80800291]
[1735658369848,2.92324,3420.9,3419.9,0.8311]
[1735658370017,2.92306,3421.1,3420.1,0.8311]
[1735658370219,2.92297,3421.2,3420.4,0.8311]
[1735658370429,2.39562996,3421.3,3420.4,0.8311]
[1735658370743,2.9229,3421.3,3420.4,0.8311]
[1735658370939,2.92296,3421.2,3420.5,0.65628129]
[1735658372057,0.58295634,3421.7,3420.9,5.73119291]
[1735658372228,0.58295634,3421.7,3421.0,0.8311]
[1735658372438,0.58295634,3421.7,3420.9,2.80800291]
[1735658372439,0.58295634,3421.7,3421.2,0.8311]
[1735658372953,2.92278,3421.4,3421.2,0.8311]
[1735658373160,0.35057363,3421.4,3420.6,0.8311]
[1735658373357,2.92295,3421.2,3420.6,0.8311]
[1735658373540,1.41085634,3421.7,3420.6,0.8311]
[1735658373747,2.92262,3421.6,3420.6,0.8311]
[1735658374463,1.41085634,3421.7,3420.5,2.92346]
[1735658374464,0.58295634,3421.7,3420.8,0.8311]
[1735658374617,3.7499,3422.4,3420.8,0.8311]
[1735658374818,3.37499,3422.3,3421.0,0.8311]